bitfinex-derivatives/quotes_BTCF0:USTF0_20250912
["timestamp","ask_amount","ask_price","bid_price","bid_amount"]
[1757695649903,0.0379,115460.0,115450.0,1.58218603]
[1757695654304,0.01479,115460.0,115450.0,1.58218603]
[1757695655110,0.01479,115460.0,115450.0,1.59981688]
[1757695655310,0.001,115460.0,115450.0,1.59981688]
[1757695655700,0.0379,115460.0,115450.0,1.59969688]
[1757695655899,0.0379,115460.0,115450.0,0.80525688]
[1757695656109,0.0379,115460.0,115450.0,1.59969688]
[1757695657310,0.0379,115460.0,115450.0,1.59981671]
[1757695659408,0.0379,115460.0,115450.0,0.80537671]
[1757695659706,0.0379,115460.0,115450.0,1.59977671]
[1757695660116,0.001,115460.0,115450.0,1.59977671]
[1757695661612,0.02837967,115460.0,115450.0,2.18636331]
[1757695661804,0.001,115460.0,115450.0,2.18636331]
[1757695662313,0.001,115460.0,115450.0,2.43636331]
[1757695662517,0.05692163,115490.0,115460.0,0.0865777]
[1757695662817,0.08430516,115490.0,115480.0,0.42582603]
[1757695663114,0.11547272,115490.0,115480.0,0.42582603]
[1757695663312,0.05855109,115490.0,115480.0,0.42582603]
[1757695663508,0.0369,115500.0,115480.0,0.87318793]
[1757695663712,0.0369,115500.0,115490.0,0.78662603]
[1757695663904,0.0369,115500.0,115490.0,1.58094603]
[1757695664223,0.0369,115500.0,115490.0,1.57694603]
[1757695664419,0.01383,115510.0,115490.0,1.52884592]
[1757695664612,0.03694,115510.0,115500.0,0.37472592]
[1757695664809,0.03694,115510.0,115500.0,0.37772592]
[1757695665013,0.01383,115510.0,115500.0,0.37572592]
[1757695665914,0.03887,115510.0,115500.0,0.37572592]
[1757695666121,0.07003756,115510.0,115500.0,0.37572592]
[1757695666419,0.01377,115500.0,115490.0,0.3578]
[1757695666617,0.01377,115500.0,115490.0,1.15204]
[1757695666818,0.01377,115500.0,115490.0,0.42595234]
[1757695667021,0.03681,115500.0,115490.0,1.22019234]
[1757695667321,0.01377,115500.0,115490.0,1.22019234]
[1757695667512,0.01377,115500.0,115490.0,1.59791826]
[1757695667919,0.01377,115500.0,115490.0,1.60091826]
[1757695668116,0.04493756,115500.0,115490.0,1.60191826]
[1757695668320,0.03116756,115500.0,115490.0,2.67733792]
[1757695668520,0.03124756,115510.0,115490.0,2.67733792]
[1757695668819,8e-05,115510.0,115500.0,0.73852592]
[1757695669017,0.03124756,115510.0,115500.0,0.73852592]
[1757695669222,0.06805756,115510.0,115500.0,0.73852592]
[1757695669422,0.06805756,115510.0,115500.0,1.53272592]
[1757695670030,0.06805756,115510.0,115500.0,1.53672592]
[1757695671224,0.06805756,115510.0,115500.0,1.53664592]
[1757695671731,0.11473223,115510.0,115500.0,1.53664592]
[1757695671927,0.08356467,115510.0,115500.0,1.53664592]
[1757695672425,0.08356467,115510.0,115500.0,0.74252592]
[1757695672627,0.08356467,115510.0,115500.0,1.53660592]
[1757695673623,0.06052467,115510.0,115500.0,1.53660592]
[1757695674327,0.03106224,115510.0,115500.0,1.53660592]
[1757695675529,0.0580646,115510.0,115500.0,1.53660592]
[1757695676130,0.0709446,115510.0,115500.0,1.53660592]
[1757695677435,0.0937346,115510.0,115500.0,0.38172592]
[1757695677729,0.0937346,115510.0,115500.0,1.17572592]
[1757695681831,0.06275236,115510.0,115500.0,1.17572592]
[1757695684234,0.0937346,115510.0,115500.0,1.17572592]
[1757695684431,0.06275236,115510.0,115500.0,1.17572592]
[1757695684822,0.03996236,115510.0,115500.0,1.17572592]
[1757695688236,0.0709446,115510.0,115500.0,1.17572592]
[1757695691438,0.05963467,115510.0,115500.0,1.17572592]
[1757695691636,0.08663703,115510.0,115500.0,1.17572592]
[1757695691940,0.11773136,115510.0,115500.0,1.53652592]
[1757695693133,0.08663703,115510.0,115500.0,1.53652592]
[1757695693433,0.07789888,115510.0,115500.0,1.53652592]
[1757695693633,0.10490124,115510.0,115500.0,1.53652592]
[1757695694341,0.05822657,115510.0,115500.0,1.53652592]
[1757695694542,0.05822657,115510.0,115500.0,1.55396429]
[1757695695135,0.02708236,115510.0,115500.0,1.55396429]
[1757695695743,0.03996236,115510.0,115500.0,1.55396429]
[1757695697040,0.03996236,115510.0,115500.0,0.74252592]
[1757695697235,0.03996236,115510.0,115500.0,1.53640592]
[1757695699045,0.02708236,115510.0,115500.0,1.53640592]
[1757695700547,0.02708236,115510.0,115500.0,2.64181798]
[1757695700733,8e-05,115510.0,115500.0,2.64181798]
[1757695701340,8e-05,115510.0,115500.0,2.0752291]
[1757695701645,8e-05,115510.0,115500.0,2.64181798]
[1757695701845,8e-05,115510.0,115500.0,1.81177798]
[1757695702046,8e-05,115510.0,115500.0,1.81277798]
[1757695702548,8e-05,115510.0,115500.0,2.43277798]
[1757695703151,8e-05,115510.0,115500.0,2.42877798]
[1757695703350,8e-05,115510.0,115500.0,2.69934572]
[1757695704749,8e-05,115510.0,115500.0,1.78550572]
[1757695704950,8e-05,115510.0,115500.0,2.57930572]
[1757695706955,8e-05,115510.0,115500.0,2.57958972]
[1757695713758,8e-05,115510.0,115500.0,1.78578972]
[1757695713958,8e-05,115510.0,115500.0,2.07950972]
[1757695714955,8e-05,115510.0,115500.0,1.28578972]
[1757695715158,8e-05,115510.0,115500.0,2.07946972]
[1757695715456,8e-05,115510.0,115500.0,1.99292062]
[1757695715754,8e-05,115510.0,115500.0,1.19924062]
[1757695715962,0.28397,115510.0,115500.0,1.55405766]
[1757695716258,0.28397,115510.0,115500.0,1.3651947]
[1757695716448,0.47283296,115510.0,115500.0,0.02185174]
[1757695716649,0.47283296,115510.0,115500.0,0.98654296]
[1757695716958,0.83363296,115510.0,115500.0,0.98654296]
[1757695717360,0.64477,115510.0,115500.0,0.19286296]
[1757695717561,0.83363296,115510.0,115500.0,0.79768]
[1757695717751,0.67128617,115510.0,115500.0,0.79768]
[1757695717951,0.86014913,115510.0,115500.0,0.004]
[1757695718460,0.42128617,115510.0,115500.0,0.19286296]
[1757695718858,0.42128617,115510.0,115500.0,0.38172592]
[1757695719352,0.67128617,115510.0,115500.0,0.38172592]
[1757695719552,0.42128617,115510.0,115500.0,0.38172592]
[1757695719752,0.06048617,115510.0,115500.0,0.74252592]
[1757695719948,0.31048617,115510.0,115500.0,0.74252592]
[1757695720261,0.2628,115510.0,115500.0,0.74252592]
[1757695720963,0.28397,115510.0,115500.0,0.74252592]
[1757695721162,0.28397,115510.0,115500.0,0.3648]
[1757695721361,0.28397,115510.0,115500.0,0.74252592]
[1757695721864,0.0128,115510.0,115500.0,0.74252592]
[1757695722063,0.03397,115510.0,115500.0,0.3648]
[1757695722256,0.03397,115510.0,115500.0,0.74252592]
[1757695723064,0.03397,115510.0,115500.0,0.38172592]
[1757695724065,0.28397,115510.0,115500.0,0.38172592]
[1757695724263,0.28397,115510.0,115500.0,0.19286296]
[1757695724556,0.28397,115510.0,115500.0,1.08106172]
[1757695724557,0.42564086,115510.0,115500.0,1.08106172]
[1757695724761,0.28397,115510.0,115500.0,1.08106172]
[1757695724961,0.28397,115510.0,115500.0,1.22273258]
[1757695725162,0.28397,115510.0,115500.0,1.08106172]
[1757695726066,0.28397,115510.0,115500.0,0.79772]
[1757695726265,0.28397,115510.0,115500.0,1.08106172]
[1757695728869,0.28397,115510.0,115500.0,0.28734172]
[1757695729068,0.28397,115510.0,115500.0,1.08106172]
[1757695729867,0.28397,115510.0,115500.0,0.28734172]
[1757695730069,0.28397,115510.0,115500.0,1.08106172]
[1757695731170,0.28397,115510.0,115500.0,1.22273258]
[1757695732367,0.28397,115510.0,115500.0,0.42901258]
[1757695732676,0.28397,115510.0,115500.0,1.22273258]
[1757695732969,1.06978258,115510.0,115500.0,0.004]
[1757695733174,1.86366258,115510.0,115500.0,0.004]
[1757695736477,1.89016083,115510.0,115500.0,0.004]
[1757695736676,1.46514825,115510.0,115500.0,0.004]
[1757695736877,1.89016083,115510.0,115500.0,0.004]
[1757695737877,0.01349,115470.0,115460.0,2.16507086]
[1757695738179,0.01349,115470.0,115460.0,3.10058172]
[1757695738472,0.01349,115470.0,115460.0,1.57965258]
[1757695738677,0.01349,115460.0,115450.0,0.37814803]
[1757695738870,0.03636,115460.0,115450.0,1.59716061]
[1757695740274,0.03636,115460.0,115450.0,1.60316061]
[1757695740581,0.03636,115460.0,115450.0,1.60716061]
[1757695740881,0.03636,115460.0,115450.0,0.3708]
[1757695741081,0.03636,115460.0,115450.0,1.58969258]
[1757695743684,0.01349,115470.0,115450.0,1.83969258]
[1757695743873,0.01349,115470.0,115460.0,0.50247086]
[1757695744182,0.03636,115470.0,115460.0,0.50247086]
[1757695745080,0.01349,115470.0,115460.0,0.78581258]
[1757695745982,0.01349,115480.0,115460.0,1.03581258]
[1757695746279,0.03636,115480.0,115470.0,1.21889258]
[1757695746682,0.03636,115480.0,115470.0,1.07722172]
[1757695748578,0.17803086,115480.0,115470.0,1.07722172]
[1757695748779,0.53883086,115480.0,115470.0,0.14567086]
[1757695749078,0.53883086,115480.0,115470.0,0.004]
[1757695749384,0.53883086,115480.0,115470.0,0.14767086]
[1757695750971,0.53883086,115480.0,115470.0,0.006]
[1757695751175,0.53883086,115480.0,115470.0,0.14767086]
[1757695752780,1.07217258,115480.0,115470.0,0.006]
[1757695752981,0.93050172,115480.0,115470.0,0.14767086]
[1757695753780,0.93050172,115480.0,115470.0,0.006]
[1757695755285,0.93050172,115480.0,115470.0,0.14767086]
[1757695757077,0.64716,115480.0,115470.0,0.14767086]
[1757695757275,0.82217258,115480.0,115470.0,0.006]
[1757695757478,1.86613258,115480.0,115470.0,0.006]
[1757695757683,1.89267215,115480.0,115470.0,0.006]
[1757695758479,0.67369957,115480.0,115470.0,0.006]
[1757695758685,0.56537043,115480.0,115470.0,0.14767086]
[1757695758993,0.42369957,115480.0,115470.0,0.43101258]
[1757695759183,0.53883086,115480.0,115470.0,0.28934172]
[1757695759788,0.56537903,115480.0,115470.0,0.28934172]
[1757695760585,0.42370817,115480.0,115470.0,0.28934172]
[1757695760889,0.56537903,115480.0,115470.0,0.28934172]
[1757695761379,0.20457903,115480.0,115470.0,0.28934172]
[1757695763089,0.70704989,115480.0,115470.0,0.006]
[1757695764093,0.70704989,115480.0,115470.0,0.14767086]
[1757695765586,0.70704989,115480.0,115470.0,0.006]
[1757695765786,0.70704989,115480.0,115470.0,0.14767086]
[1757695768792,1.09872075,115480.0,115470.0,0.006]
[1757695768988,1.12986496,115480.0,115470.0,0.006]
[1757695770288,1.09872075,115480.0,115470.0,0.006]
[1757695770494,1.92394496,115480.0,115470.0,0.006]
[1757695771300,1.89280075,115480.0,115470.0,0.006]
[1757695773291,1.9127087,115480.0,115470.0,0.006]
[1757695774695,1.48769612,115480.0,115470.0,0.006]
[1757695774901,1.1186287,115480.0,115470.0,0.006]
[1757695775094,1.9126287,115480.0,115470.0,0.006]
[1757695776005,1.89272075,115480.0,115470.0,0.006]
[1757695776896,1.91278726,115480.0,115470.0,0.006]
[1757695779303,1.66278726,115480.0,115470.0,0.006]
[1757695783907,0.86878726,115480.0,115470.0,0.006]
[1757695784107,1.66278726,115480.0,115470.0,0.006]
[1757695784312,0.86878726,115480.0,115470.0,0.006]
[1757695784515,1.61585146,115480.0,115470.0,0.006]
[1757695785514,1.23777468,115480.0,115470.0,0.006]
[1757695785716,1.61585146,115480.0,115470.0,0.006]
[1757695786718,1.23777468,115480.0,115470.0,0.006]
[1757695786906,1.61585146,115480.0,115470.0,0.006]
[1757695791012,0.03593,115450.0,115440.0,0.01758367]
[1757695791217,0.22496839,115450.0,115440.0,0.20662206]
[1757695791821,0.03593,115450.0,115440.0,0.20662206]
[1757695792013,0.22496839,115450.0,115440.0,0.01758367]
[1757695792212,0.22496839,115450.0,115440.0,0.21162206]
[1757695792408,0.22496839,115450.0,115440.0,0.21962206]
[1757695793124,0.2335052,115450.0,115440.0,0.21962206]
[1757695793419,0.2335052,115450.0,115440.0,0.03058367]
[1757695793618,0.5943052,115450.0,115440.0,0.03058367]
[1757695794023,1.19926681,115450.0,115440.0,0.03058367]
[1757695794214,1.3883052,115450.0,115440.0,0.03058367]
[1757695798417,1.3883452,115450.0,115440.0,0.03058367]
[1757695798617,0.5943052,115450.0,115440.0,0.03058367]
[1757695798818,1.3883452,115450.0,115440.0,0.03058367]
[1757695799013,0.5943052,115450.0,115440.0,0.03058367]
[1757695799325,1.37980839,115450.0,115440.0,0.21962206]
[1757695799522,0.58576839,115450.0,115440.0,0.03058367]
[1757695799823,1.37980839,115450.0,115440.0,0.21962206]
[1757695800627,1.19077,115450.0,115440.0,0.21962206]
[1757695800922,1.37980839,115450.0,115440.0,0.21962206]
[1757695801532,0.39673,115450.0,115440.0,0.21962206]
[1757695801831,0.03593,115450.0,115440.0,0.65866045]
[1757695802018,0.03593,115450.0,115440.0,1.01946045]
[1757695802619,0.01334,115450.0,115440.0,1.10605415]
[1757695802822,0.01334,115450.0,115440.0,1.01946045]
[1757695803028,0.01334,115450.0,115440.0,1.81350045]
[1757695804330,0.01334,115450.0,115440.0,1.90009415]
[1757695804524,0.39445827,115460.0,115440.0,1.90009415]
[1757695804832,0.41704827,115460.0,115450.0,0.18903839]
[1757695805225,0.05624827,115460.0,115450.0,0.18903839]
[1757695806131,0.05624827,115460.0,115450.0,0.19403839]
[1757695807433,0.05624827,115460.0,115450.0,0.19703839]
[1757695808135,0.24528666,115460.0,115450.0,0.008]
[1757695808433,0.05624827,115460.0,115450.0,0.19703839]
[1757695811136,0.05624827,115460.0,115450.0,0.55783839]
[1757695811434,0.03365827,115460.0,115450.0,1.08346298]
[1757695811834,0.01334,115460.0,115450.0,1.08346298]
[1757695812233,0.01334,115460.0,115450.0,0.89442459]
[1757695812828,0.01334,115460.0,115450.0,1.68842459]
[1757695814030,0.01334,115460.0,115450.0,1.87746298]
[1757695814233,0.01334,115470.0,115450.0,1.87746298]
[1757695814531,0.03593,115470.0,115460.0,0.46465548]
[1757695814729,0.01334,115470.0,115460.0,0.91142743]
[1757695814929,0.01334,115470.0,115460.0,1.70542743]
[1757695815436,0.01334,115470.0,115460.0,0.91142743]
[1757695815635,0.01334,115470.0,115460.0,1.70542743]
[1757695815829,0.01334,115470.0,115460.0,1.64074888]
[1757695817338,0.01334,115470.0,115460.0,0.76017018]
[1757695817533,0.01334,115470.0,115460.0,0.76217018]
[1757695817738,0.01334,115470.0,115460.0,1.55613018]
[1757695818537,0.03593,115470.0,115460.0,1.55613018]
[1757695818737,0.03593,115470.0,115460.0,1.56465161]
[1757695819836,0.03593,115470.0,115460.0,1.63405739]
[1757695820033,0.03593,115470.0,115460.0,0.84009739]
[1757695820240,0.03593,115470.0,115460.0,1.63405739]
[1757695820739,0.03593,115470.0,115460.0,0.83157596]
[1757695821038,0.03593,115470.0,115460.0,1.62549596]
[1757695821240,0.03593,115470.0,115460.0,1.26469596]
[1757695822026,0.03593,115470.0,115460.0,1.27331679]
[1757695826341,0.03593,115470.0,115460.0,0.47077596]
[1757695826529,0.03593,115470.0,115460.0,1.26465596]
[1757695827031,0.03597,115470.0,115460.0,1.26465596]
[1757695828136,4e-05,115470.0,115460.0,1.26465596]
[1757695828442,4e-05,115470.0,115460.0,1.63422888]
[1757695828629,0.01372,115470.0,115460.0,1.63422888]
[1757695829529,0.01372,115470.0,115460.0,1.72080768]
[1757695830029,4e-05,115470.0,115460.0,1.72080768]
[1757695831142,4e-05,115470.0,115460.0,2.15984607]
[1757695832741,4e-05,115470.0,115460.0,1.36596607]
[1757695832935,4e-05,115470.0,115460.0,2.15976607]
[1757695833343,4e-05,115470.0,115460.0,1.36596607]
[1757695833538,4e-05,115470.0,115460.0,1.97072768]
[1757695834140,4e-05,115470.0,115460.0,1.17692768]
[1757695834441,4e-05,115470.0,115460.0,1.97068768]
[1757695834841,4e-05,115470.0,115460.0,2.15972607]
[1757695835545,4e-05,115470.0,115460.0,1.36596607]
[1757695835743,4e-05,115470.0,115460.0,2.15972607]
[1757695837541,4e-05,115470.0,115460.0,2.15968607]
[1757695838240,4e-05,115470.0,115460.0,1.17692768]
[1757695838538,4e-05,115470.0,115460.0,1.97064768]
[1757695838747,0.01372,115470.0,115460.0,0.4622721]
[1757695838948,0.03662,115470.0,115460.0,0.84034888]
[1757695839243,0.03662,115470.0,115460.0,0.47077596]
[1757695839447,0.03662,115470.0,115460.0,0.8169734]
[1757695839640,0.47565839,115470.0,115460.0,0.0232934]
[1757695839836,0.47565839,115470.0,115460.0,0.8169734]
[1757695840046,0.65587034,115470.0,115460.0,1.00601179]
[1757695840647,0.84490873,115470.0,115460.0,0.0232934]
[1757695840842,0.84490873,115470.0,115460.0,0.006]
[1757695841043,0.84490873,115470.0,115460.0,0.01466]
[1757695842048,0.65587034,115470.0,115460.0,0.01466]
[1757695842245,0.65587034,115470.0,115460.0,0.20369839]
[1757695842246,0.84490873,115470.0,115460.0,0.20369839]
[1757695846452,0.79764242,115470.0,115460.0,0.15643208]
[1757695847553,0.78919208,115470.0,115460.0,0.29820416]
[1757695848344,0.93096416,115470.0,115460.0,0.01466]
[1757695848651,0.93096416,115470.0,115460.0,0.15643208]
[1757695849858,0.93980583,115470.0,115460.0,0.15643208]
[1757695850045,0.79803375,115470.0,115460.0,0.15643208]
[1757695851247,0.79803375,115470.0,115460.0,0.17374922]
[1757695851751,0.65626167,115470.0,115460.0,0.17374922]
[1757695851954,0.79803375,115470.0,115460.0,0.3155213]
[1757695853253,0.78919208,115470.0,115460.0,0.3155213]
[1757695853752,0.53919208,115470.0,115460.0,0.3155213]
[1757695854252,0.39742,115470.0,115460.0,0.3155213]
[1757695854447,0.03662,115470.0,115460.0,0.45729338]
[1757695855254,0.03662,115470.0,115460.0,0.3155213]
[1757695855450,0.03662,115470.0,115460.0,0.45729338]
[1757695855649,0.03662,115470.0,115460.0,0.3155213]
[1757695856649,0.03662,115470.0,115460.0,0.45729338]
[1757695856950,0.01372,115470.0,115460.0,0.45729338]
[1757695857148,0.01372,115470.0,115460.0,0.81809338]
[1757695857455,0.03527,115470.0,115460.0,0.81809338]
[1757695858053,0.01372,115470.0,115460.0,1.15467218]
[1757695859054,0.01372,115470.0,115460.0,1.06809338]
[1757695859454,0.03527,115470.0,115460.0,0.64277714]
[1757695859656,0.03527,115470.0,115460.0,1.06809338]
[1757695860661,0.01372,115470.0,115460.0,1.15467218]
[1757695861458,0.01372,115470.0,115460.0,1.22533144]
[1757695864953,0.01372,115470.0,115460.0,0.8000152]
[1757695865155,0.01372,115470.0,115460.0,1.22533144]
[1757695866162,0.01372,115470.0,115460.0,2.01893144]
[1757695866960,0.01372,115470.0,115460.0,1.22533144]
[1757695867160,0.01372,115470.0,115460.0,1.93231264]
[1757695867563,0.01372,115470.0,115460.0,1.13875264]
[1757695867761,0.01372,115470.0,115460.0,1.93231264]
[1757695868263,0.01372,115470.0,115460.0,1.13875264]
[1757695868461,0.01372,115470.0,115460.0,1.93231264]
[1757695868961,0.01372,115470.0,115460.0,1.13875264]
[1757695869162,0.01372,115470.0,115460.0,1.93231264]
[1757695869962,0.01372,115470.0,115460.0,1.93227264]
[1757695874069,0.01372,115470.0,115460.0,1.68227264]
[1757695875467,0.0132,115470.0,115460.0,1.68227264]
[1757695876261,4e-05,115470.0,115460.0,1.76885134]
[1757695876768,0.0132,115470.0,115460.0,1.76885134]
[1757695878464,4e-05,115470.0,115460.0,1.76885134]
[1757695878870,4e-05,115470.0,115460.0,1.3435351]
[1757695879073,0.0132,115470.0,115460.0,1.76885134]
[1757695883782,4e-05,115470.0,115460.0,1.76885134]
[1757695884280,4e-05,115470.0,115460.0,2.01885134]
[1757695885178,4e-05,115470.0,115460.0,2.20885134]
[1757695885482,0.02006651,115480.0,115470.0,0.0865712]
[1757695885685,0.02006651,115480.0,115470.0,0.87268744]
[1757695886875,0.02006651,115480.0,115470.0,0.88134744]
[1757695887082,0.02006651,115480.0,115470.0,1.13334744]
[1757695887287,0.37414,115500.0,115470.0,1.22091864]
[1757695887487,0.03453,115500.0,115490.0,0.42531624]
[1757695888981,0.39543,115510.0,115490.0,0.42531624]
[1757695889185,0.03463,115510.0,115500.0,1.21867624]
[1757695889579,0.01344,115510.0,115500.0,1.22715803]
[1757695890692,0.01444,115510.0,115500.0,1.22715803]
[1757695891290,0.03563,115510.0,115500.0,1.22715803]
[1757695891978,0.03663,115510.0,115500.0,1.22711803]
[1757695892176,0.03663,115510.0,115500.0,1.26178307]
[1757695893690,0.03663,115510.0,115500.0,1.33118711]
[1757695894492,0.01544,115510.0,115500.0,1.33118711]
[1757695895689,0.01544,115510.0,115500.0,1.33114711]
[1757695897188,0.01544,115510.0,115500.0,0.53790711]
[1757695897376,0.01544,115510.0,115500.0,1.33110711]
[1757695900879,0.01544,115510.0,115500.0,1.41765591]
[1757695901891,0.01544,115510.0,115500.0,0.53790711]
[1757695902094,0.01544,115510.0,115500.0,1.33102711]
[1757695904190,0.01544,115510.0,115500.0,1.33967711]
[1757695905194,0.01544,115510.0,115500.0,0.54655711]
[1757695905491,0.03663,115510.0,115500.0,1.33115532]
[1757695905890,0.03663,115510.0,115500.0,0.53807532]
[1757695906086,0.03663,115510.0,115500.0,1.33115532]
[1757695906485,0.03663,115510.0,115500.0,1.32843653]
[1757695906784,0.06307575,115510.0,115500.0,1.32843653]
[1757695906984,0.06307575,115510.0,115500.0,0.90312029]
[1757695907186,0.03663,115510.0,115500.0,1.33704045]
[1757695907493,0.06307856,115510.0,115500.0,1.33704045]
[1757695908385,0.06307856,115510.0,115500.0,1.28942729]
[1757695908694,0.06307856,115510.0,115500.0,0.49634729]
[1757695908885,0.06307856,115510.0,115500.0,1.28078337]
[1757695910094,0.06307856,115510.0,115500.0,0.11004029]
[1757695910296,0.06307856,115510.0,115500.0,0.90308029]
[1757695910492,0.06307856,115510.0,115500.0,1.09193183]
[1757695910692,0.06307856,115510.0,115500.0,1.28078337]
[1757695911598,0.04188856,115510.0,115500.0,1.28078337]
[1757695911895,0.01544,115510.0,115500.0,1.28078337]
[1757695916700,0.01544,115510.0,115500.0,0.90308029]
[1757695916889,0.01544,115510.0,115500.0,1.28078337]
[1757695917795,0.01544,115510.0,115500.0,0.48774337]
[1757695917991,0.03778,115510.0,115500.0,1.28070337]
[1757695919099,0.03778,115510.0,115500.0,1.24875712]
[1757695919698,0.01544,115510.0,115500.0,1.24875712]
[1757695920596,0.01544,115510.0,115500.0,0.45579712]
[1757695920797,0.01544,115510.0,115500.0,1.24875712]
[1757695926601,0.01544,115510.0,115500.0,0.45579712]
[1757695926804,0.01544,115510.0,115500.0,1.24871712]
[1757695928400,0.01544,115510.0,115500.0,0.45579712]
[1757695928703,0.03778,115510.0,115500.0,1.24871712]
[1757695931303,0.03778,115510.0,115500.0,0.87101404]
[1757695931599,0.03778,115510.0,115500.0,1.24871712]
[1757695933704,0.03778,115510.0,115500.0,0.45579712]
[1757695933902,0.30753914,115510.0,115500.0,0.99038154]
[1757695934401,0.30753914,115510.0,115500.0,1.17923308]
[1757695936006,0.30753914,115510.0,115500.0,0.80153]
[1757695936202,0.30753914,115510.0,115500.0,1.17923308]
[1757695942714,0.30753914,115510.0,115500.0,0.80153]
[1757695942914,0.30753914,115510.0,115500.0,1.17923308]
[1757695943115,0.30753914,115510.0,115500.0,1.17915308]
[1757695945017,0.30753914,115510.0,115500.0,0.80145]
[1757695945219,0.30753914,115510.0,115500.0,1.17915308]
[1757695945711,0.30753914,115510.0,115500.0,0.80145]
[1757695946019,0.30753914,115510.0,115500.0,1.17915308]
[1757695948416,0.66833914,115510.0,115500.0,0.80145]
[1757695948716,0.30753914,115510.0,115500.0,0.99026154]
[1757695949810,0.30753914,115510.0,115500.0,1.17911308]
[1757695950021,0.03778,115510.0,115500.0,1.17911308]
[1757695950817,0.03778,115510.0,115500.0,0.80141]
[1757695951021,0.03778,115510.0,115500.0,1.17907308]
[1757695951920,0.05764752,115510.0,115500.0,1.17907308]
[1757695954724,0.03530752,115510.0,115500.0,1.26562188]
[1757695956325,0.03530752,115510.0,115500.0,1.33400671]
[1757695956724,0.05753752,115510.0,115500.0,0.07703483]
[1757695956919,0.05753752,115510.0,115500.0,1.24745791]
[1757695957322,0.05753752,115510.0,115500.0,1.05856637]
[1757695957624,0.05753752,115510.0,115500.0,1.24741791]
[1757695959523,0.05753752,115510.0,115500.0,0.86971483]
[1757695959726,0.05753752,115510.0,115500.0,1.24741791]
[1757695960324,0.05753752,115510.0,115500.0,0.45473791]
[1757695960525,0.05753752,115510.0,115500.0,1.24741791]
[1757695960724,0.05753752,115510.0,115500.0,0.07703483]
[1757695960929,0.05753752,115510.0,115500.0,0.86971483]
[1757695961225,0.05753752,115510.0,115500.0,1.05856637]
[1757695961415,0.05753752,115510.0,115500.0,1.24741791]
[1757695962327,0.05753752,115510.0,115500.0,0.86971483]
[1757695962529,0.05753752,115510.0,115500.0,1.24741791]
[1757695963228,0.05753752,115510.0,115500.0,0.86971483]
[1757695963527,0.05753752,115510.0,115500.0,1.24741791]
[1757695965019,0.05753752,115510.0,115500.0,0.45473791]
[1757695965020,0.41833752,115510.0,115500.0,0.45473791]
[1757695965220,0.41833752,115510.0,115500.0,1.24737791]
[1757695965417,0.88360229,115510.0,115500.0,0.00865]
[1757695965623,0.85718906,115510.0,115500.0,0.00865]
[1757695965917,0.88360412,115510.0,115500.0,0.00865]
[1757695967231,0.69475258,115510.0,115500.0,0.00865]
[1757695967528,0.88360412,115510.0,115500.0,0.00865]
[1757695968517,0.97815658,115510.0,115500.0,0.00865]
[1757695969226,1.11985858,115510.0,115500.0,0.00865]
[1757695969528,1.09344352,115510.0,115500.0,0.00865]
[1757695969732,0.66833752,115510.0,115500.0,0.00865]
[1757695969930,1.09344352,115510.0,115500.0,0.00865]
[1757695970931,0.66833752,115510.0,115500.0,0.00865]
[1757695971129,1.09344352,115510.0,115500.0,0.00865]
[1757695973732,1.88624352,115510.0,115500.0,0.00865]
[1757695978736,1.09344352,115510.0,115500.0,0.00865]
[1757695978930,1.49458152,115510.0,115500.0,0.150352]
[1757695980128,1.21117752,115510.0,115500.0,0.150352]
[1757695980324,1.49454152,115510.0,115500.0,0.150352]
[1757695981137,1.21113752,115510.0,115500.0,0.150352]
[1757695981437,1.49454152,115510.0,115500.0,0.150352]
[1757695984237,1.49446152,115510.0,115500.0,0.150352]
[1757695984442,1.35275952,115510.0,115500.0,0.150352]
[1757695985941,1.21105752,115510.0,115500.0,0.150352]
[1757695986140,1.35275952,115510.0,115500.0,0.150352]
[1757695987040,1.49446152,115510.0,115500.0,0.150352]
[1757695989242,1.49446152,115510.0,115500.0,0.00865]
[1757695989442,1.49446152,115510.0,115500.0,0.150352]
[1757695989643,1.49446152,115510.0,115500.0,0.00865]
[1757695989938,1.49446152,115510.0,115500.0,0.150352]
[1757695991942,1.52084462,115510.0,115500.0,0.00865]
[1757695992135,1.52084462,115510.0,115500.0,0.150352]
[1757695993847,1.52088462,115510.0,115500.0,0.150352]
[1757695994147,1.52088462,115510.0,115500.0,0.00865]
[1757695994448,1.52088462,115510.0,115500.0,0.150352]
[1757695997351,1.66258662,115510.0,115500.0,0.00865]
[1757695997645,0.03593,115480.0,115470.0,0.66181038]
[1757695997851,0.177632,115480.0,115470.0,0.15930838]
[1757695998053,0.177632,115480.0,115470.0,0.30101038]
[1757695998251,0.177632,115480.0,115470.0,0.01760638]
[1757695998444,0.177632,115480.0,115470.0,0.30101038]
[1757695998949,0.177632,115480.0,115470.0,0.30301038]
[1757696000051,0.177632,115480.0,115470.0,0.30401038]
[1757696000239,0.03593,115480.0,115470.0,0.02060638]
[1757696000439,0.03593,115480.0,115470.0,0.80651238]
[1757696000649,0.01263,115480.0,115470.0,0.80651238]
[1757696000844,0.01263,115480.0,115470.0,1.05651238]
[1757696005548,0.01263,115480.0,115470.0,1.84927238]
[1757696005748,0.01263,115480.0,115470.0,1.84923238]
[1757696005947,0.176422,115480.0,115470.0,0.44571238]
[1757696006554,0.03472,115480.0,115470.0,0.44571238]
[1757696007257,0.03472,115480.0,115470.0,1.23843238]
[1757696007452,0.03472,115480.0,115470.0,0.44571238]
[1757696007658,0.03472,115480.0,115470.0,1.23843238]
[1757696007858,0.176422,115480.0,115470.0,0.79572]
[1757696008157,0.05457393,115480.0,115470.0,1.220826]
[1757696008659,0.05457393,115480.0,115470.0,1.079124]
[1757696009254,0.05457393,115480.0,115470.0,1.220826]
[1757696012467,0.05457393,115480.0,115470.0,0.428106]
[1757696012667,0.05457393,115480.0,115470.0,1.220866]
[1757696018274,0.03248393,115480.0,115470.0,1.581666]
[1757696019978,0.01985393,115480.0,115470.0,1.581666]
[1757696020279,0.03304393,115480.0,115470.0,1.581666]
[1757696020471,0.03304393,115480.0,115470.0,1.15656]
[1757696020671,0.03304393,115480.0,115470.0,1.581666]
[1757696021179,0.01985393,115480.0,115470.0,1.6682372]
[1757696021974,0.03304393,115480.0,115470.0,1.6682372]
[1757696024685,0.03304393,115480.0,115470.0,0.8754772]
[1757696024985,0.03304393,115480.0,115470.0,1.6681972]
[1757696025379,0.01985393,115480.0,115470.0,1.6681972]
[1757696028884,0.01985393,115480.0,115470.0,0.8754772]